bitfinex/quotes_BTCUSD_20220731
["timestamp","ask_amount","ask_price","bid_price","bid_amount"]
[1659303349230,0.68913408,23724.0,23723.0,1.0594772]
[1659303349453,0.68913408,23724.0,23723.0,0.7594772]
[1659303349675,0.68913408,23724.0,23723.0,1.0594772]
[1659303349891,0.68913408,23724.0,23723.0,0.7594772]
[1659303350606,0.24593547,23724.0,23723.0,0.75852232]
[1659303350824,0.28099852,23724.0,23723.0,1.06197971]
[1659303351048,0.24593547,23724.0,23723.0,1.06197971]
[1659303351497,0.24593547,23724.0,23723.0,1.04262971]
[1659303351726,0.24593547,23724.0,23723.0,1.04400702]
[1659303352606,0.2514481,23724.0,23723.0,1.34400702]
[1659303353489,0.2514481,23724.0,23723.0,1.35654709]
[1659303354388,0.2514481,23724.0,23723.0,1.03762971]
[1659303354618,0.2514481,23724.0,23723.0,1.03900702]
[1659303355517,0.2514481,23724.0,23723.0,1.03762971]
[1659303355734,0.2514481,23724.0,23723.0,1.03769857]
[1659303357524,0.2514481,23724.0,23723.0,1.00552397]
[1659303357757,0.2514481,23724.0,23723.0,0.62061664]
[1659303358033,0.3014481,23724.0,23723.0,0.31912164]
[1659303360678,0.2514481,23724.0,23723.0,0.31912164]
[1659303361118,0.3014481,23724.0,23723.0,0.31912164]
[1659303361547,0.2514481,23724.0,23723.0,0.31912164]
[1659303362032,0.3014481,23724.0,23723.0,0.31912164]
[1659303362681,0.2514481,23724.0,23723.0,0.31912164]
[1659303363125,0.3014481,23724.0,23723.0,0.31912164]
[1659303366486,0.3014481,23724.0,23723.0,0.31780451]
[1659303368527,0.2514481,23724.0,23723.0,0.31780451]
[1659303369904,0.3014481,23724.0,23723.0,0.61929951]
[1659303370119,0.30350844,23724.0,23723.0,0.31780451]
[1659303370359,0.35350844,23724.0,23723.0,0.21247551]
[1659303370579,0.30350844,23724.0,23723.0,0.21247551]
[1659303371025,0.35350844,23724.0,23723.0,0.21247551]
[1659303371754,0.35350844,23724.0,23723.0,0.00181751]
[1659303372003,0.29632536,23724.0,23723.0,0.00181751]
[1659303372295,0.30183799,23724.0,23723.0,0.00181751]
[1659303376217,0.09999791,23720.0,23719.0,0.00133571]
[1659303376444,0.53890524,23720.0,23719.0,0.0011]
[1659303376677,0.09999791,23715.0,23713.0,0.03087434]
[1659303376911,0.0011,23719.0,23710.0,0.553]
[1659303376912,0.09999791,23713.0,23710.0,0.553]
[1659303377147,0.85327452,23713.0,23710.0,0.553]
[1659303377583,0.85327452,23713.0,23704.0,0.002]
[1659303377584,0.05,23708.0,23702.0,0.0241737]
[1659303377592,1.05537661,23713.0,23702.0,0.0241737]
[1659303377593,0.09999791,23703.0,23702.0,0.0241737]
[1659303377831,0.09999791,23703.0,23690.0,0.26232674]
[1659303377833,0.09679653,23697.0,23690.0,0.26232674]
[1659303378082,0.09679653,23697.0,23683.0,0.20293671]
[1659303378083,0.09679653,23684.0,23683.0,0.20293671]
[1659303378320,0.05,23691.0,23677.0,0.09226232]
[1659303378321,0.09679653,23678.0,23677.0,0.09226232]
[1659303378550,0.09679653,23678.0,23673.0,0.74776809]
[1659303378551,0.09679653,23678.0,23674.0,0.02018232]
[1659303378552,0.09679653,23675.0,23674.0,0.02018232]
[1659303378779,0.09679653,23675.0,23671.0,0.28685564]
[1659303378780,0.09679653,23675.0,23671.0,0.004129]
[1659303378781,0.14679653,23673.0,23671.0,0.004129]
[1659303379031,0.40725733,23675.0,23671.0,9e-06]
[1659303379032,0.96904886,23672.0,23671.0,9e-06]
[1659303379283,0.96904886,23672.0,23667.0,0.00143972]
[1659303379284,0.14679653,23668.0,23667.0,0.00143972]
[1659303379523,0.55205386,23668.0,23667.0,0.00143972]
[1659303379754,0.55098192,23668.0,23667.0,0.00143972]
[1659303380009,0.58604497,23668.0,23667.0,0.00143972]
[1659303380235,0.58604497,23668.0,23660.0,0.00011362]
[1659303380236,0.04679653,23661.0,23660.0,0.00011362]
[1659303380465,0.43405386,23661.0,23660.0,0.29660862]
[1659303380952,0.43295386,23661.0,23660.0,0.29660862]
[1659303381182,0.48295386,23661.0,23660.0,0.29660862]
[1659303381440,0.43295386,23661.0,23660.0,0.29660862]
[1659303381692,0.43295386,23661.0,23657.0,0.4]
[1659303381693,0.02569653,23658.0,23657.0,0.4]
[1659303381928,0.02569653,23658.0,23657.0,0.302175]
[1659303384907,0.02569653,23658.0,23657.0,0.70943233]
[1659303385248,0.06628752,23658.0,23657.0,0.302175]
[1659303385344,0.03122447,23658.0,23657.0,0.302175]
[1659303385566,0.03122447,23658.0,23657.0,0.70943233]
[1659303386047,0.03122447,23658.0,23657.0,0.302175]
[1659303386274,0.03122447,23658.0,23657.0,0.3021084]
[1659303386719,0.03122447,23658.0,23657.0,0.70936573]
[1659303386971,0.59574555,23658.0,23657.0,0.3021084]
[1659303387187,0.59574555,23658.0,23653.0,0.4]
[1659303387188,0.07569653,23657.0,23656.0,7.065e-05]
[1659303387410,0.02569653,23657.0,23656.0,0.30226865]
[1659303387630,0.52004902,23658.0,23656.0,0.30226865]
[1659303387631,0.57004902,23658.0,23656.0,7.065e-05]
[1659303388211,0.57004902,23658.0,23650.0,0.394]
[1659303388212,0.60511207,23658.0,23650.0,0.394]
[1659303388435,0.60511207,23658.0,23651.0,0.70945533]
[1659303388693,0.60511207,23658.0,23652.0,0.70945533]
[1659303388937,1.20044619,23658.0,23653.0,0.69629155]
[1659303389167,0.02569653,23656.0,23654.0,0.302221]
[1659303389842,0.01569653,23656.0,23654.0,0.302221]
[1659303390078,0.01569653,23656.0,23655.0,0.79947833]
[1659303390308,0.01569653,23656.0,23655.0,1.09947833]
[1659303390532,1.15044619,23658.0,23655.0,1.09947833]
[1659303390799,1.15044619,23658.0,23657.0,0.09]
[1659303391023,1.15044619,23658.0,23657.0,0.79947833]
[1659303391260,1.15044619,23658.0,23657.0,1.09947833]
[1659303391480,1.16061478,23658.0,23657.0,0.79947833]
[1659303391989,0.63452108,23658.0,23657.0,1.49347833]
[1659303392434,0.63452108,23658.0,23657.0,1.95612181]
[1659303392669,0.63452108,23658.0,23657.0,1.46612181]
[1659303393139,0.63452108,23658.0,23657.0,1.45347833]
[1659303393367,0.63452108,23658.0,23657.0,1.85347833]
[1659303393595,0.16109108,23658.0,23657.0,1.85347833]
[1659303393833,0.07000716,23660.0,23659.0,0.13]
[1659303394053,0.07000716,23660.0,23659.0,0.83947833]
[1659303394279,0.07000716,23660.0,23659.0,1.15212181]
[1659303394506,0.01569653,23670.0,23659.0,1.15212181]
[1659303394507,0.01569653,23670.0,23660.0,0.06999284]
[1659303394758,0.3,23673.0,23666.0,0.40725733]
[1659303394759,0.01569653,23673.0,23666.0,0.40725733]
[1659303394984,0.01569653,23673.0,23665.0,0.394]
[1659303394985,0.01569653,23675.0,23667.0,0.3]
[1659303395216,0.51273854,23676.0,23669.0,0.394]
[1659303395450,0.01569653,23678.0,23672.0,0.394]
[1659303395730,0.001,23680.0,23677.0,0.08]
[1659303395964,0.001,23680.0,23673.0,0.70725733]
[1659303395965,0.001,23680.0,23678.0,0.40725733]
[1659303396190,0.001,23680.0,23679.0,0.04]
[1659303396424,0.001,23680.0,23679.0,0.40725733]
[1659303396655,0.001,23680.0,23679.0,0.70725733]
[1659303397336,0.001,23681.0,23680.0,0.05]
[1659303397570,0.52197355,23688.0,23680.0,1.85347833]
[1659303397571,0.51297355,23688.0,23680.0,1.85347833]
[1659303397799,0.51297355,23688.0,23683.0,0.394]
[1659303398017,0.03165,23694.0,23684.0,1.00947833]
[1659303398312,0.01569653,23693.0,23687.0,0.05]
[1659303398571,0.01569653,23696.0,23687.0,0.75725733]
[1659303398788,0.5637,23699.0,23688.0,1.10125733]
[1659303398789,0.03165,23698.0,23688.0,1.10125733]
[1659303399029,0.302221,23697.0,23689.0,0.84935733]
[1659303399258,0.302221,23697.0,23690.0,0.40725733]
[1659303399488,8.16564267,23688.0,23687.0,1.1921]
[1659303399722,8.16564267,23688.0,23687.0,1.54935733]
[1659303399963,8.16564267,23688.0,23687.0,1.64935733]
[1659303400201,7.19564267,23688.0,23687.0,1.7653208]
[1659303400652,7.19564267,23688.0,23687.0,1.8073708]
[1659303401128,7.19564267,23688.0,23687.0,1.7774108]
[1659303401361,7.19564267,23688.0,23687.0,1.7274108]
[1659303401587,7.19564267,23688.0,23687.0,1.8090708]
[1659303401821,6.76001611,23688.0,23687.0,2.3633918]
[1659303402045,5.35232008,23688.0,23687.0,2.4403918]
[1659303402280,5.35232008,23688.0,23687.0,2.47460792]
[1659303402281,3.41507612,23688.0,23687.0,2.47460792]
[1659303402513,3.41507612,23688.0,23687.0,2.4253918]
[1659303402514,2.15507612,23688.0,23687.0,2.4253918]
[1659303402757,2.15507612,23688.0,23687.0,2.1416318]
[1659303402977,2.15507612,23688.0,23687.0,2.0995818]
[1659303403466,2.16019708,23688.0,23687.0,2.0225818]
[1659303403922,2.16019708,23688.0,23687.0,2.05470818]
[1659303404157,2.16019708,23688.0,23687.0,2.13470818]
[1659303404383,2.16019708,23688.0,23687.0,2.17675818]
[1659303404858,2.16019708,23688.0,23687.0,1.79175818]
[1659303405073,2.16019708,23688.0,23687.0,2.19175818]
[1659303405303,2.16019708,23688.0,23687.0,2.11175818]
[1659303405978,2.16019708,23688.0,23687.0,2.19134267]
[1659303406449,2.16019708,23688.0,23687.0,2.44344267]
[1659303407200,0.84000095,23688.0,23687.0,2.49301131]
[1659303407346,0.00129226,23689.0,23688.0,0.51845347]
[1659303407585,0.00129226,23689.0,23688.0,1.5279318]
[1659303407808,0.00129226,23689.0,23688.0,1.5911318]
[1659303409205,0.00129226,23689.0,23688.0,1.6911318]
[1659303409431,0.00129226,23689.0,23688.0,1.5279318]
[1659303409666,0.00129226,23689.0,23688.0,1.4858818]
[1659303410157,0.00129226,23689.0,23688.0,1.07947833]
[1659303410385,0.00129226,23689.0,23688.0,1.52157833]
[1659303411393,0.00129226,23689.0,23688.0,1.41438461]
[1659303411394,0.00604693,23689.0,23688.0,1.41438461]
[1659303411609,9.00604693,23689.0,23688.0,1.41438461]
[1659303411828,9.00604693,23689.0,23688.0,1.11240261]
[1659303412045,9.00604693,23689.0,23688.0,1.25360261]
[1659303412482,9.00604693,23689.0,23688.0,1.20458482]
[1659303412699,9.00604693,23689.0,23688.0,1.14138482]
[1659303413346,8.97498193,23689.0,23688.0,1.16863482]
[1659303413587,8.97498193,23689.0,23688.0,1.2812783]
[1659303413769,8.97498193,23689.0,23688.0,1.26863482]
[1659303414027,8.97498193,23689.0,23688.0,1.34163482]
[1659303414258,9.01609022,23689.0,23688.0,0.54898482]
[1659303414967,9.04775022,23689.0,23688.0,0.54898482]
[1659303415423,0.15,23685.0,23684.0,0.00020968]
[1659303415632,0.21673305,23685.0,23684.0,0.00020968]
[1659303415861,0.21673305,23685.0,23676.0,0.4]
[1659303415862,0.46871505,23685.0,23676.0,0.4]
[1659303416070,0.05,23683.0,23677.0,0.40725733]
[1659303416495,0.03167,23682.0,23679.0,0.4000674]
[1659303416708,0.03506305,23681.0,23679.0,0.40732473]
[1659303416939,0.05,23683.0,23679.0,0.40732473]
[1659303417156,0.05441616,23683.0,23679.0,0.40732473]
[1659303417406,0.08608616,23683.0,23679.0,0.40725733]
[1659303417583,0.03506305,23682.0,23679.0,0.40725733]
[1659303417834,0.03167,23681.0,23679.0,0.40725733]
[1659303418057,0.03167,23681.0,23679.0,0.40732473]
[1659303418263,0.03167,23681.0,23679.0,6.74e-05]
[1659303418488,0.06,23680.0,23679.0,6.74e-05]
[1659303418757,0.09167,23680.0,23679.0,6.74e-05]
[1659303419166,0.09167,23680.0,23673.0,0.03124538]
[1659303419402,0.09167,23680.0,23674.0,0.40725733]
[1659303419628,0.03167,23679.0,23674.0,0.40725733]
[1659303419842,0.11,23680.0,23675.0,0.301982]
[1659303419843,0.20367,23680.0,23675.0,0.301982]
[1659303420057,0.20367,23680.0,23675.0,0.40725733]
[1659303421132,0.172,23680.0,23676.0,0.301982]
[1659303421351,0.11,23680.0,23676.0,0.40725733]
[1659303421582,0.11,23680.0,23677.0,0.601982]
[1659303421783,0.11,23680.0,23678.0,0.196866]
[1659303422000,0.1,23680.0,23676.0,0.40725733]
[1659303422523,0.1,23680.0,23677.0,0.301982]
[1659303422665,0.65377545,23680.0,23677.0,0.4]
[1659303423135,0.65377545,23680.0,23676.0,0.40725733]
[1659303423138,0.69325522,23680.0,23677.0,7.083e-05]
[1659303423583,0.60819217,23680.0,23677.0,0.30007083]
[1659303423588,0.60819217,23680.0,23678.0,0.40725733]
[1659303423840,0.60819217,23680.0,23679.0,0.601982]
[1659303423841,0.63519217,23680.0,23679.0,0.601982]
[1659303424049,0.63519217,23680.0,23679.0,0.496829]
[1659303424348,0.63645896,23680.0,23679.0,0.3]
[1659303424520,0.63645896,23680.0,23678.0,0.40732816]
[1659303424874,0.63645896,23680.0,23679.0,0.301982]
[1659303425091,0.63645896,23680.0,23678.0,0.40732816]
[1659303425308,0.55945896,23680.0,23679.0,0.601982]
[1659303425512,0.55945896,23680.0,23679.0,0.3]
[1659303425731,0.55945896,23680.0,23679.0,0.601982]
[1659303425962,0.63045896,23680.0,23679.0,0.31]
[1659303426179,0.63045896,23680.0,23679.0,0.41725733]
[1659303426440,1.117,23688.0,23679.0,0.41725733]
[1659303426441,8.97498193,23689.0,23680.0,0.79861]
[1659303426667,8.97498193,23689.0,23688.0,0.4421]
[1659303426900,8.97498193,23689.0,23688.0,0.70725733]
[1659303427126,8.97498193,23689.0,23688.0,0.3]
[1659303427349,8.97498193,23689.0,23688.0,0.70725733]
[1659303428001,9.01004498,23689.0,23688.0,0.47225733]
[1659303428237,8.98044138,23689.0,23688.0,0.47225733]
[1659303428449,8.98044138,23689.0,23688.0,0.77225733]
[1659303428663,8.98044138,23689.0,23688.0,1.21435733]
[1659303428924,8.98044138,23689.0,23688.0,0.78490081]
[1659303429118,8.98044138,23689.0,23688.0,1.16200081]
[1659303429755,8.98044138,23689.0,23688.0,1.14935733]
[1659303429966,8.98044138,23689.0,23688.0,1.22935733]
[1659303430610,8.98044138,23689.0,23688.0,1.34200081]
[1659303431063,8.98044138,23689.0,23688.0,1.37140733]
[1659303431292,8.98044138,23689.0,23688.0,1.29140733]
[1659303431981,8.98044138,23689.0,23688.0,1.37040733]
[1659303433393,8.98044138,23689.0,23688.0,1.29140733]
[1659303433613,8.98044138,23689.0,23688.0,1.60104388]
[1659303433839,8.98044138,23689.0,23688.0,1.66834388]
[1659303434128,8.98044138,23689.0,23688.0,0.68862393]
[1659303434129,9.01550443,23689.0,23688.0,0.68862393]
[1659303434362,9.01550443,23689.0,23688.0,0.08]
[1659303434363,9.06550443,23689.0,23688.0,0.08]
[1659303434583,0.06,23687.0,23684.0,0.00028344]
[1659303434814,0.06,23685.0,23684.0,0.40754077]
[1659303435037,0.06,23685.0,23684.0,0.40725733]
[1659303435038,0.44704505,23685.0,23684.0,0.40725733]
[1659303435268,0.14506305,23685.0,23684.0,0.40725733]
[1659303435501,0.08506305,23685.0,23684.0,0.40725733]
[1659303436013,0.08506305,23685.0,23684.0,0.48625733]
[1659303436232,0.08506305,23685.0,23684.0,0.88625733]
[1659303436233,0.055655,23685.0,23684.0,0.88625733]
[1659303436449,0.05526511,23685.0,23684.0,0.48625733]
[1659303437399,0.05526511,23685.0,23684.0,0.40725733]
[1659303438067,0.05526511,23685.0,23684.0,0.53639966]
[1659303439695,0.05526511,23685.0,23684.0,0.45739966]
[1659303439938,0.05526511,23685.0,23684.0,0.53639966]
[1659303441030,0.05526511,23685.0,23684.0,0.12914233]
[1659303441512,0.08693511,23685.0,23684.0,0.05014233]
[1659303441785,0.38891711,23685.0,23684.0,0.05014233]
[1659303441965,0.08693511,23685.0,23684.0,0.12914233]
[1659303443365,0.08693511,23685.0,23684.0,0.05014233]
[1659303443366,0.54419244,23685.0,23684.0,0.05014233]
[1659303443611,0.84617444,23685.0,23680.0,0.00020079]
[1659303443850,0.40725733,23684.0,23680.0,0.03137912]
[1659303444069,0.62319244,23685.0,23680.0,0.43137912]
[1659303444515,0.05,23682.0,23680.0,0.43137912]
[1659303444976,2.79292753,23681.0,23680.0,0.43137912]
[1659303445949,2.87092753,23681.0,23680.0,0.43137912]
[1659303446417,0.078,23681.0,23680.0,0.43137912]
[1659303447319,0.00384989,23681.0,23680.0,0.43137912]
[1659303447974,0.06084989,23681.0,23680.0,0.43137912]
[1659303448440,0.06084989,23681.0,23680.0,0.83137912]
[1659303448680,0.06084989,23681.0,23680.0,1.98073645]
[1659303449348,0.00384989,23681.0,23680.0,2.28271845]
[1659303450071,0.00384989,23681.0,23680.0,2.36171845]
[1659303450954,9.53630028,23689.0,23682.0,0.4421]
[1659303450955,9.49136795,23689.0,23682.0,0.4421]
[1659303451168,9.49136795,23689.0,23684.0,0.4]
[1659303451391,9.49136795,23689.0,23685.0,0.40725733]
[1659303451624,0.03467316,23688.0,23685.0,0.43852521]
[1659303451849,9.49136795,23689.0,23687.0,0.4]
[1659303452082,0.301982,23688.0,23687.0,0.4]
[1659303452299,0.301982,23688.0,23685.0,0.03126788]
[1659303452300,2.13745539,23688.0,23685.0,0.03126788]
[1659303452532,0.06,23686.0,23685.0,0.03126788]
[1659303452749,0.03506305,23687.0,23685.0,0.03126788]
[1659303452989,0.06,23686.0,23685.0,0.03126788]
[1659303453511,0.03506305,23687.0,23685.0,0.03126788]
[1659303453969,0.068,23686.0,23685.0,0.03126788]
[1659303454203,0.068,23686.0,23685.0,0.03133656]
[1659303455169,0.06838989,23686.0,23685.0,0.03133656]
[1659303455406,0.00479518,23687.0,23685.0,0.03126788]
[1659303456070,0.003,23686.0,23685.0,0.09126788]
[1659303456296,0.003,23686.0,23685.0,0.49852521]
[1659303456517,0.003,23686.0,23685.0,0.79852521]
[1659303456973,0.003,23686.0,23685.0,0.90401321]
[1659303457258,0.03985823,23687.0,23685.0,0.84401321]
[1659303457477,0.03985823,23687.0,23686.0,0.80725733]
[1659303457920,0.02379518,23687.0,23686.0,1.10725733]
[1659303458392,0.02379518,23687.0,23686.0,0.80725733]
[1659303459109,0.02379518,23687.0,23686.0,0.40725733]
[1659303459328,0.03985823,23687.0,23686.0,0.40725733]
[1659303459801,0.00479518,23687.0,23686.0,0.40725733]
[1659303460027,0.08379518,23687.0,23686.0,0.40725733]
[1659303460468,0.08379518,23687.0,23686.0,1.10725733]
[1659303461206,0.11846834,23687.0,23686.0,1.10725733]
[1659303461439,0.00479518,23687.0,23686.0,1.10725733]
[1659303461663,0.00479518,23687.0,23686.0,0.80725733]
[1659303462113,0.05079518,23687.0,23686.0,0.80725733]
[1659303462343,0.08585823,23687.0,23686.0,0.80725733]
[1659303462554,0.05079518,23687.0,23686.0,0.80725733]
[1659303463489,0.00479518,23687.0,23686.0,0.80725733]
[1659303463959,0.04979518,23687.0,23686.0,1.10725733]
[1659303464401,0.08485823,23687.0,23686.0,0.80725733]
[1659303464629,0.04979518,23687.0,23686.0,0.80725733]
[1659303465392,0.00479518,23687.0,23686.0,0.80725733]
[1659303465587,0.03985823,23687.0,23686.0,0.80725733]
[1659303465790,0.00479518,23687.0,23686.0,0.80725733]
[1659303465992,0.02979518,23687.0,23686.0,0.88425733]
[1659303466834,0.02979518,23687.0,23686.0,1.18425733]
[1659303467162,0.02979518,23687.0,23686.0,0.88425733]
[1659303467389,0.00479518,23687.0,23686.0,0.80725733]
[1659303467843,0.00479518,23687.0,23686.0,1.10725733]
[1659303468041,0.01579518,23687.0,23686.0,1.17925733]
[1659303469874,0.00479518,23687.0,23686.0,1.10725733]
[1659303470096,0.01579518,23687.0,23686.0,1.17925733]
[1659303471248,0.00479518,23687.0,23686.0,1.10725733]
[1659303472115,0.02079518,23687.0,23686.0,1.18225733]
[1659303472556,0.02079518,23687.0,23686.0,0.88225733]
[1659303472805,0.02079518,23687.0,23686.0,1.18225733]
[1659303473259,0.00470311,23687.0,23686.0,1.10725733]
[1659303473963,0.04170311,23687.0,23686.0,1.10725733]
[1659303474638,0.04170311,23687.0,23686.0,0.80725733]
[1659303475365,0.00470311,23687.0,23686.0,0.80725733]
[1659303476061,0.04870311,23687.0,23686.0,0.80725733]
[1659303477428,0.00470311,23687.0,23686.0,0.80725733]
[1659303478127,0.05070311,23687.0,23686.0,0.80725733]
[1659303479243,0.00470311,23687.0,23686.0,0.80725733]
[1659303480085,0.05070311,23687.0,23686.0,0.80725733]
[1659303481238,0.00470311,23687.0,23686.0,0.80725733]
[1659303481927,0.05070311,23687.0,23686.0,1.10725733]
[1659303482618,0.05070311,23687.0,23686.0,0.80725733]
[1659303483286,0.00470311,23687.0,23686.0,0.80725733]
[1659303484000,0.03870311,23687.0,23686.0,0.88525733]
[1659303484743,0.03870311,23687.0,23686.0,0.58525733]
[1659303484977,0.03870311,23687.0,23686.0,0.88525733]
[1659303485428,0.00470311,23687.0,23686.0,0.80725733]
[1659303485648,0.00470311,23687.0,23686.0,0.81990081]
[1659303485886,0.00470311,23687.0,23686.0,1.21990081]
[1659303486117,0.08370311,23687.0,23686.0,1.20725733]
[1659303487688,0.00470311,23687.0,23686.0,1.20725733]
[1659303487919,0.05870311,23687.0,23686.0,1.20725733]
[1659303489307,0.00470311,23687.0,23686.0,1.20725733]
[1659303489993,0.02570311,23687.0,23686.0,1.31484128]
[1659303491063,0.06076616,23687.0,23686.0,0.876]
[1659303491274,0.00470311,23687.0,23686.0,0.4]
[1659303491876,0.06070311,23687.0,23686.0,0.4]
[1659303493677,0.00470311,23687.0,23685.0,0.13675888]
[1659303493886,0.06070311,23687.0,23685.0,0.13675888]
[1659303494114,0.06070311,23687.0,23685.0,0.03126788]
[1659303494115,0.49891733,23686.0,23685.0,0.03126788]
[1659303494346,1.20217983,23686.0,23680.0,0.03173432]
[1659303494600,1.20217983,23686.0,23680.0,0.02062917]
[1659303494601,0.70923933,23685.0,23680.0,0.02062917]
[1659303494813,1.09099901,23684.0,23680.0,0.02062917]
[1659303495040,0.06,23681.0,23680.0,0.02062917]
[1659303495255,0.11,23681.0,23680.0,0.02062917]
[1659303495677,0.16,23681.0,23680.0,0.02062917]
[1659303495945,0.461982,23681.0,23680.0,0.09962917]
[1659303496155,0.11,23681.0,23680.0,0.09962917]
[1659303496379,0.11289125,23681.0,23680.0,0.09962917]
[1659303496582,0.41487325,23681.0,23680.0,0.09962917]
[1659303497245,0.46487325,23681.0,23680.0,0.09962917]
[1659303497480,0.41487325,23681.0,23680.0,0.09962917]
[1659303497709,0.41487325,23681.0,23680.0,0.02062917]
[1659303497916,0.49387325,23681.0,23680.0,0.02062917]
[1659303498332,0.19189125,23681.0,23680.0,0.02062917]
[1659303498534,0.49387325,23681.0,23680.0,0.02062917]
[1659303498735,0.19189125,23681.0,23680.0,0.02062917]
[1659303498962,0.49387325,23681.0,23680.0,0.02062917]
[1659303499168,0.46487325,23681.0,23680.0,0.02062917]
[1659303499660,0.1979543,23681.0,23680.0,0.02062917]
[1659303499797,0.4999363,23681.0,23680.0,0.02062917]
[1659303500004,0.24189125,23681.0,23680.0,0.02062917]
[1659303500435,0.54387325,23681.0,23680.0,0.02062917]
[1659303500641,0.5789363,23681.0,23680.0,0.02062917]
[1659303500909,0.54387325,23681.0,23680.0,0.02062917]
[1659303501285,0.46487325,23681.0,23680.0,0.02062917]
[1659303501513,0.41487325,23681.0,23680.0,0.02062917]
[1659303501930,0.43387325,23681.0,23680.0,0.02062917]
[1659303502137,0.13189125,23681.0,23680.0,0.02062917]
[1659303502384,0.43387325,23681.0,23680.0,0.02062917]
[1659303502646,0.48387325,23681.0,23680.0,0.02062917]
[1659303502850,0.53387325,23681.0,23680.0,0.02062917]
[1659303503051,0.94113058,23681.0,23680.0,0.02062917]
[1659303504109,0.05,23674.0,23673.0,0.04205]
[1659303504320,0.05,23674.0,23673.0,0.86789263]
[1659303504523,0.05,23674.0,23673.0,0.56591063]
[1659303504696,0.05,23674.0,23673.0,0.86789263]
[1659303504926,0.05,23674.0,23673.0,0.56591063]
[1659303505184,0.05,23674.0,23673.0,0.86789263]
[1659303505398,0.05,23674.0,23673.0,0.56591063]
[1659303506089,0.05,23674.0,23673.0,0.60286063]
[1659303506317,0.05,23674.0,23673.0,0.1956033]
[1659303506537,0.05,23674.0,23673.0,0.1166033]
[1659303506764,0.05,23674.0,23673.0,0.4166033]
[1659303506989,0.05,23674.0,23673.0,0.0110523]
[1659303507900,0.05,23674.0,23673.0,0.3130343]
[1659303508121,0.05,23674.0,23673.0,0.0110523]
[1659303508122,0.128,23674.0,23673.0,0.0110523]
[1659303508350,0.128,23674.0,23673.0,0.1165943]
[1659303508593,0.128,23674.0,23673.0,0.4165943]
[1659303509297,0.05,23674.0,23673.0,0.4165943]
[1659303509511,0.05,23674.0,23673.0,0.82385163]
[1659303509946,0.128,23674.0,23673.0,0.82385163]
[1659303510390,0.128,23674.0,23673.0,1.12583363]
[1659303510602,0.128,23674.0,23673.0,0.82385163]
[1659303511246,0.05,23674.0,23673.0,0.82385163]
[1659303511949,0.16306305,23674.0,23673.0,0.4165943]
[1659303512166,0.128,23674.0,23673.0,0.1165943]
[1659303513191,0.05,23674.0,23673.0,0.4165943]
[1659303513844,0.128,23674.0,23673.0,0.4165943]
[1659303514292,0.128,23674.0,23673.0,0.1165943]
[1659303515018,0.16306305,23674.0,23673.0,0.0110523]
[1659303515249,0.08506305,23674.0,23673.0,0.0110523]
[1659303515903,0.14006305,23674.0,23673.0,0.0110523]
[1659303516370,0.44204505,23674.0,23673.0,0.0110523]
[1659303516617,0.44269781,23674.0,23673.0,0.0110523]
[1659303517278,0.79495514,23674.0,23673.0,0.0110523]
[1659303517504,0.82663514,23674.0,23673.0,0.0110523]
[1659303517746,0.79495514,23674.0,23673.0,0.0110523]
[1659303517965,0.86195514,23674.0,23673.0,0.0110523]
[1659303519294,0.82663514,23674.0,23673.0,0.0110523]
[1659303519502,0.79495514,23674.0,23673.0,0.0110523]
[1659303519946,0.84063514,23674.0,23673.0,0.0850523]
[1659303520879,0.80895514,23674.0,23673.0,0.0850523]
[1659303521092,0.84063514,23674.0,23673.0,0.0110523]
[1659303521305,0.79495514,23674.0,23673.0,0.0110523]
[1659303521986,0.87395514,23674.0,23673.0,0.0110523]
[1659303522197,0.97395514,23674.0,23673.0,0.0110523]
[1659303522719,0.26,23673.0,23672.0,2.58e-06]
[1659303522874,1.00091933,23673.0,23672.0,2.58e-06]
[1659303523095,1.00091933,23673.0,23672.0,0.00734909]
[1659303523550,1.05091933,23673.0,23672.0,0.00734909]
[1659303524028,1.12891933,23673.0,23672.0,0.00734909]
[1659303524242,1.12891933,23673.0,23672.0,0.00734651]
[1659303524680,1.13253355,23673.0,23672.0,0.00734651]
[1659303524890,1.08253355,23673.0,23672.0,0.00734651]
[1659303525337,1.00453355,23673.0,23672.0,0.00734651]
[1659303525994,1.08253355,23673.0,23672.0,0.00734651]
[1659303526202,1.05085355,23673.0,23672.0,0.00734651]
[1659303526436,1.08253355,23673.0,23672.0,0.00734651]
[1659303526730,1.02253355,23673.0,23672.0,0.00734651]
[1659303527171,0.91285355,23673.0,23672.0,0.00734651]
[1659303527621,0.94453355,23673.0,23672.0,0.00734651]
[1659303527839,1.02253355,23673.0,23672.0,0.00734651]
[1659303528519,1.32262323,23673.0,23672.0,0.00734651]
[1659303528747,0.000331,23672.0,23671.0,7.97e-05]
[1659303528971,0.74125033,23672.0,23666.0,0.00180733]
[1659303529196,0.75923933,23671.0,23666.0,0.00180733]
[1659303529433,0.06,23667.0,23666.0,0.00180733]
[1659303529662,0.46725733,23667.0,23666.0,0.00180733]
[1659303530112,0.76923933,23667.0,23666.0,0.00180733]
[1659303530613,0.301982,23667.0,23666.0,0.00180733]
[1659303531502,0.34630705,23669.0,23666.0,0.00180733]
[1659303531764,0.70934033,23668.0,23666.0,0.00180733]
[1659303532016,0.380083,23667.0,23666.0,0.00180733]
[1659303532235,0.078,23667.0,23666.0,0.00180733]
[1659303532443,0.380083,23667.0,23666.0,0.00180733]
[1659303532678,0.4186816,23667.0,23666.0,0.00180733]
[1659303532893,0.1165986,23667.0,23666.0,0.00180733]
[1659303533124,0.3406816,23667.0,23666.0,0.00180733]
[1659303533558,0.30561855,23667.0,23666.0,0.00180733]
[1659303533778,0.3406816,23667.0,23666.0,0.00180733]
[1659303534021,0.3556816,23667.0,23666.0,0.07580733]
[1659303535127,0.0535986,23667.0,23666.0,0.00180733]
[1659303535342,0.3406816,23667.0,23666.0,0.00180733]
[1659303535823,0.0385986,23667.0,23666.0,0.00180733]
[1659303536063,0.4186816,23667.0,23666.0,0.00180733]
[1659303536272,0.1165986,23667.0,23666.0,0.00180733]
[1659303536486,0.4186816,23667.0,23666.0,0.00180733]
[1659303536701,0.1165986,23667.0,23666.0,0.00180733]
[1659303536944,0.38361855,23667.0,23666.0,0.00180733]
[1659303537160,0.30561855,23667.0,23666.0,0.00180733]
[1659303537589,0.00353555,23667.0,23666.0,0.00180733]
[1659303537791,0.30561855,23667.0,23666.0,0.00180733]
[1659303538010,0.04553555,23667.0,23666.0,0.00180733]
[1659303538230,0.34761855,23667.0,23666.0,0.00180733]
[1659303538439,0.04553555,23667.0,23666.0,0.00180733]
[1659303539338,0.00353555,23667.0,23666.0,0.00180733]
[1659303539977,0.04553555,23667.0,23666.0,0.00180733]
[1659303541315,0.00353555,23667.0,23666.0,0.00180733]